[Event "Late-Titled-Tuesday-Blitz-March-05-2024"]
[Site "Chess.com"]
[Date "2024.03.05"]
[Round "3"]
[White "ckgchess"]
[Black "NateSolon"]
[Result "1-0"]
[WhiteElo "2925"]
[BlackElo "2691"]
[TimeControl "180+1"]
[EndTime "14:28:04 PST"]
[Termination "ckgchess won by resignation"]

1. e4 {[%clk 0:03:00.9]} 1... c5 {[%clk 0:02:59.6]} 2. c3 {[%clk 0:03:01]} 2...
Nf6 {[%clk 0:02:59.2]} 3. e5 {[%clk 0:03:01.2]} 3... Nd5 {[%clk 0:02:59.5]} 4.
d4 {[%clk 0:03:01.1]} 4... cxd4 {[%clk 0:03:00.4]} 5. Bc4 {[%clk 0:03:01.4]}
5... e6 {[%clk 0:02:58.7]} 6. cxd4 {[%clk 0:03:00.6]} 6... Nc6 {[%clk
0:02:56.7]} 7. Nf3 {[%clk 0:03:00.3]} 7... d6 {[%clk 0:02:56.6]} 8. O-O {[%clk
0:03:00.4]} 8... Be7 {[%clk 0:02:56.8]} 9. Qe2 {[%clk 0:03:00.8]} 9... O-O
{[%clk 0:02:55.9]} 10. Rd1 {[%clk 0:03:00.8]} 10... Nb6 {[%clk 0:02:42.9]} 11.
Bb3 {[%clk 0:02:56.3]} 11... Bd7 {[%clk 0:02:32.3]} 12. Bf4 {[%clk 0:02:53.4]}
12... dxe5 {[%clk 0:02:07]} 13. dxe5 {[%clk 0:02:54.3]} 13... Na5 {[%clk
0:02:06.7]} 14. Bc2 {[%clk 0:02:50.1]} 14... Nd5 {[%clk 0:02:06.8]} 15. Qe4
{[%clk 0:02:33.5]} 15... g6 {[%clk 0:02:06.4]} 16. Bh6 {[%clk 0:02:33.4]} 16...
Re8 {[%clk 0:02:04.1]} 17. Nc3 {[%clk 0:02:30.6]} 17... Bc6 {[%clk 0:01:56.6]}
18. Nxd5 {[%clk 0:02:25.6]} 18... Bxd5 {[%clk 0:01:57.5]} 19. Qf4 {[%clk
0:02:26]} 19... Rc8 {[%clk 0:01:53.8]} 20. Ng5 {[%clk 0:02:14.7]} 20... Rf8
{[%clk 0:01:31.8]} 21. Bd3 {[%clk 0:01:50.4]} 21... Nc4 {[%clk 0:01:16.2]} 22.
Rab1 {[%clk 0:01:09.2]} 22... f6 {[%clk 0:01:15]} 23. Bxf8 {[%clk 0:01:04.5]}
23... Qxf8 {[%clk 0:01:00.9]} 24. exf6 {[%clk 0:01:03.4]} 24... Bxf6 {[%clk
0:01:01.8]} 25. Rbc1 {[%clk 0:00:26]} 25... Bxg5 {[%clk 0:00:53.6]} 26. Qxg5
{[%clk 0:00:24.4]} 26... Nxb2 {[%clk 0:00:54.5]} 27. Bxg6 {[%clk 0:00:08.1]}
27... hxg6 {[%clk 0:00:48.6]} 28. Qxg6+ {[%clk 0:00:07.9]} 28... Kh8 {[%clk
0:00:49.2]} 29. Rxc8 {[%clk 0:00:07.1]} 29... Qxc8 {[%clk 0:00:49.3]} 30. Qf6+
{[%clk 0:00:07.4]} 30... Kh7 {[%clk 0:00:48.1]} 31. Qxb2 {[%clk 0:00:08.3]}
31... Qc4 {[%clk 0:00:46.3]} 32. Rc1 {[%clk 0:00:05.8]} 32... Qg4 {[%clk
0:00:45.7]} 33. f3 {[%clk 0:00:03.6]} 33... Bxf3 {[%clk 0:00:41.3]} 34. Rc7+
{[%clk 0:00:03.9]} 34... Kg8 {[%clk 0:00:37.8]} 35. Rc8+ {[%clk 0:00:04.2]}
35... Kf7 {[%clk 0:00:36.6]} 36. Qf2 {[%clk 0:00:03.3]} 36... Ke7 {[%clk
0:00:27.4]} 37. Qxf3 {[%clk 0:00:03.1]} 37... Qd4+ {[%clk 0:00:28.1]} 38. Qf2
{[%clk 0:00:03.1]} 38... Qd1+ {[%clk 0:00:28.1]} 39. Qf1 {[%clk 0:00:03.5]}
39... Qd4+ {[%clk 0:00:29]} 40. Kh1 {[%clk 0:00:04]} 1-0

[Event "Late-Titled-Tuesday-Blitz-March-05-2024"]
[Site "Chess.com"]
[Date "2024.03.05"]
[Round "3"]
[White "DeArron_Fox"]
[Black "OverallStranger"]
[Result "0-1"]
[WhiteElo "2545"]
[BlackElo "2380"]
[TimeControl "180+1"]
[EndTime "14:28:04 PST"]
[Termination "OverallStranger won on time"]

1. d4 {[%clk 0:03:00.9]} 1... Nf6 {[%clk 0:03:00.2]} 2. c4 {[%clk 0:03:01.4]}
2... c5 {[%clk 0:03:00.2]} 3. d5 {[%clk 0:03:01.3]} 3... b5 {[%clk 0:03:01]} 4.
cxb5 {[%clk 0:03:02.2]} 4... a6 {[%clk 0:03:01.5]} 5. bxa6 {[%clk 0:03:03.1]}
5... Bxa6 {[%clk 0:03:02.3]} 6. Nc3 {[%clk 0:03:03.8]} 6... d6 {[%clk 0:03:03]}
7. e4 {[%clk 0:03:04.4]} 7... Bxf1 {[%clk 0:03:03.9]} 8. Kxf1 {[%clk 0:03:05.3]}
8... g6 {[%clk 0:03:04.6]} 9. g3 {[%clk 0:03:06]} 9... Bg7 {[%clk 0:03:05]} 10.
Kg2 {[%clk 0:03:06.7]} 10... O-O {[%clk 0:03:05.8]} 11. Nf3 {[%clk 0:03:07.4]}
11... Qb6 {[%clk 0:03:06.5]} 12. a4 {[%clk 0:03:01.5]} 12... Na6 {[%clk
0:03:06.3]} 13. Nd2 {[%clk 0:02:56.5]} 13... Nc7 {[%clk 0:03:05.2]} 14. Ra3
{[%clk 0:02:52]} 14... Rfb8 {[%clk 0:03:01.7]} 15. Nc4 {[%clk 0:02:39]} 15...
Qa6 {[%clk 0:03:02]} 16. b3 {[%clk 0:02:36.6]} 16... Nd7 {[%clk 0:02:57.4]} 17.
Qc2 {[%clk 0:02:31.8]} 17... Ne5 {[%clk 0:02:57]} 18. Nxe5 {[%clk 0:02:27.7]}
18... Bxe5 {[%clk 0:02:56.8]} 19. h4 {[%clk 0:02:18.7]} 19... h5 {[%clk
0:02:56.1]} 20. Bg5 {[%clk 0:02:09.4]} 20... Bxc3 {[%clk 0:02:00.8]} 21. Qxc3
{[%clk 0:02:08.3]} 21... Nb5 {[%clk 0:02:00.8]} 22. axb5 {[%clk 0:02:01.5]}
22... Qxa3 {[%clk 0:02:01.7]} 23. Bxe7 {[%clk 0:02:01.8]} 23... Rxb5 {[%clk
0:01:15.5]} 24. Bxd6 {[%clk 0:02:00.1]} 24... Re8 {[%clk 0:01:06.9]} 25. Re1
{[%clk 0:01:06.7]} 25... Qxb3 {[%clk 0:00:42]} 26. Qxb3 {[%clk 0:00:12.3]} 26...
Rxb3 {[%clk 0:00:42.9]} 27. Bxc5 {[%clk 0:00:13]} 27... Rb5 {[%clk 0:00:42.5]}
28. Rc1 {[%clk 0:00:02.9]} 28... Rxe4 {[%clk 0:00:33.7]} 29. d6 {[%clk
0:00:03.4]} 29... Rb7 {[%clk 0:00:20.7]} 30. Bb6 {[%clk 0:00:03.7]} 30... Re8
{[%clk 0:00:14.8]} 31. Rc7 {[%clk 0:00:02.5]} 31... Rxb6 {[%clk 0:00:13.5]} 32.
d7 {[%clk 0:00:02.9]} 32... Rd8 {[%clk 0:00:14.1]} 33. Rc8 {[%clk 0:00:03.3]}
33... Rb8 {[%clk 0:00:14.8]} 34. Rc7 {[%clk 0:00:01.9]} 34... Kf8 {[%clk
0:00:14.1]} 0-1

[Event "Late-Titled-Tuesday-Blitz-March-05-2024"]
[Site "Chess.com"]
[Date "2024.03.05"]
[Round "3"]
[White "secretsuperstar7"]
[Black "mac0504"]
[Result "0-1"]
[WhiteElo "2498"]
[BlackElo "2714"]
[TimeControl "180+1"]
[EndTime "14:28:05 PST"]
[Termination "mac0504 won by resignation"]

1. c4 {[%clk 0:02:54.3]} 1... g6 {[%clk 0:02:59.7]} 2. Nc3 {[%clk 0:02:52]} 2...
Bg7 {[%clk 0:03:00.5]} 3. e4 {[%clk 0:02:47.4]} 3... d6 {[%clk 0:03:01.1]} 4. d3
{[%clk 0:02:47.6]} 4... e5 {[%clk 0:02:59.2]} 5. g3 {[%clk 0:02:48]} 5... Ne7
{[%clk 0:02:59.7]} 6. Bg2 {[%clk 0:02:48.5]} 6... O-O {[%clk 0:03:00.5]} 7. Nge2
{[%clk 0:02:48.5]} 7... f5 {[%clk 0:03:01.3]} 8. O-O {[%clk 0:02:48.7]} 8...
Nbc6 {[%clk 0:02:59.2]} 9. Rb1 {[%clk 0:02:46.2]} 9... a5 {[%clk 0:02:58.8]} 10.
a3 {[%clk 0:02:46]} 10... fxe4 {[%clk 0:02:47.5]} 11. dxe4 {[%clk 0:02:36.2]}
11... Bg4 {[%clk 0:02:46]} 12. f3 {[%clk 0:02:32.9]} 12... Be6 {[%clk
0:02:46.5]} 13. Be3 {[%clk 0:02:32.7]} 13... Bxc4 {[%clk 0:02:45.3]} 14. Rc1
{[%clk 0:02:17.5]} 14... Be6 {[%clk 0:02:43.9]} 15. Nd5 {[%clk 0:02:16.9]} 15...
h6 {[%clk 0:02:20.2]} 16. Qd2 {[%clk 0:02:14]} 16... Kh7 {[%clk 0:02:19.4]} 17.
b4 {[%clk 0:02:10.4]} 17... axb4 {[%clk 0:02:19.3]} 18. axb4 {[%clk 0:02:10.2]}
18... Ra3 {[%clk 0:01:31.4]} 19. Bf2 {[%clk 0:01:42.7]} 19... Qd7 {[%clk
0:00:23.5]} 20. b5 {[%clk 0:01:35.2]} 20... Bxd5 {[%clk 0:00:23.6]} 21. exd5
{[%clk 0:01:31.6]} 21... Nd8 {[%clk 0:00:24.4]} 22. Qb4 {[%clk 0:01:12.5]} 22...
Ra2 {[%clk 0:00:23.5]} 23. Qc4 {[%clk 0:01:12.8]} 23... Rb2 {[%clk 0:00:19.1]}
24. Nc3 {[%clk 0:01:08.3]} 24... Nf7 {[%clk 0:00:14.7]} 25. Na4 {[%clk
0:01:04.4]} 25... Rxb5 {[%clk 0:00:14.4]} 26. Qxc7 {[%clk 0:01:04.5]} 26... Qxc7
{[%clk 0:00:14.7]} 27. Rxc7 {[%clk 0:01:05.1]} 27... Nxd5 {[%clk 0:00:14.9]} 28.
Rcc1 {[%clk 0:00:57.3]} 28... Ng5 {[%clk 0:00:13.9]} 29. Nc3 {[%clk 0:00:49.6]}
29... Nxc3 {[%clk 0:00:13.9]} 30. Rxc3 {[%clk 0:00:49.9]} 30... e4 {[%clk
0:00:11.9]} 31. Rc7 {[%clk 0:00:38.4]} 31... exf3 {[%clk 0:00:09.6]} 32. h4
{[%clk 0:00:38.6]} 32... Ne6 {[%clk 0:00:07.8]} 33. Rxg7+ {[%clk 0:00:32.7]}
33... Kxg7 {[%clk 0:00:07.1]} 34. Bh3 {[%clk 0:00:33]} 34... Nc5 {[%clk
0:00:04.7]} 35. Bd4+ {[%clk 0:00:31.8]} 35... Kg8 {[%clk 0:00:05.4]} 36. Re1
{[%clk 0:00:30.1]} 36... Rb4 {[%clk 0:00:04.7]} 37. Bc3 {[%clk 0:00:25.3]} 37...
f2+ {[%clk 0:00:04.9]} 38. Kf1 {[%clk 0:00:25.3]} 38... fxe1=Q+ {[%clk
0:00:05.3]} 39. Kxe1 {[%clk 0:00:26.2]} 39... Rb3 {[%clk 0:00:04.8]} 40. Kd2
{[%clk 0:00:26.2]} 40... Ne4+ {[%clk 0:00:04.8]} 41. Kd3 {[%clk 0:00:26.7]}
41... Rxc3+ {[%clk 0:00:05.7]} 0-1

[Event "Late-Titled-Tuesday-Blitz-March-05-2024"]
[Site "Chess.com"]
[Date "2024.03.05"]
[Round "3"]
[White "rionelG"]
[Black "Caracal3000"]
[Result "0-1"]
[WhiteElo "2213"]
[BlackElo "2466"]
[TimeControl "180+1"]
[EndTime "14:28:05 PST"]
[Termination "Caracal3000 won by resignation"]

1. e4 {[%clk 0:03:00.9]} 1... e5 {[%clk 0:02:59.3]} 2. Nf3 {[%clk 0:02:58.6]}
2... Nc6 {[%clk 0:03:00]} 3. Bb5 {[%clk 0:02:59]} 3... a6 {[%clk 0:03:00]} 4.
Ba4 {[%clk 0:02:58.1]} 4... Nf6 {[%clk 0:03:00.7]} 5. O-O {[%clk 0:02:57.9]}
5... b5 {[%clk 0:03:01.3]} 6. Bb3 {[%clk 0:02:58.2]} 6... Bc5 {[%clk 0:03:02.1]}
7. c3 {[%clk 0:02:57.5]} 7... d6 {[%clk 0:03:02.7]} 8. d4 {[%clk 0:02:57]} 8...
Bb6 {[%clk 0:03:03.3]} 9. h3 {[%clk 0:02:49.1]} 9... Bb7 {[%clk 0:02:57.8]} 10.
Re1 {[%clk 0:02:37.7]} 10... O-O {[%clk 0:02:48.3]} 11. Bc2 {[%clk 0:02:36.9]}
11... h6 {[%clk 0:02:45.5]} 12. Be3 {[%clk 0:02:33.2]} 12... Re8 {[%clk
0:02:35.6]} 13. Nbd2 {[%clk 0:02:31.8]} 13... Rb8 {[%clk 0:02:28.9]} 14. a4
{[%clk 0:02:16.5]} 14... Na5 {[%clk 0:01:51.5]} 15. Qe2 {[%clk 0:02:01.2]} 15...
exd4 {[%clk 0:01:41.9]} 16. Bxd4 {[%clk 0:01:48.2]} 16... Bxd4 {[%clk
0:01:25.3]} 17. cxd4 {[%clk 0:01:46.1]} 17... Nc4 {[%clk 0:01:25.9]} 18. axb5
{[%clk 0:01:20.2]} 18... axb5 {[%clk 0:01:24.9]} 19. Nxc4 {[%clk 0:01:11.7]}
19... bxc4 {[%clk 0:01:24.4]} 20. Nd2 {[%clk 0:01:03.7]} 20... Ba8 {[%clk
0:01:05.3]} 21. Ra2 {[%clk 0:00:40.6]} 21... Rb4 {[%clk 0:00:52.8]} 22. Rea1
{[%clk 0:00:29.8]} 22... Bb7 {[%clk 0:00:28.7]} 23. f3 {[%clk 0:00:25.8]} 23...
d5 {[%clk 0:00:23.2]} 24. e5 {[%clk 0:00:23.9]} 24... Nd7 {[%clk 0:00:23.9]} 25.
f4 {[%clk 0:00:17.2]} 25... c5 {[%clk 0:00:24.4]} 26. Nf3 {[%clk 0:00:15.6]}
26... cxd4 {[%clk 0:00:19.4]} 27. Nxd4 {[%clk 0:00:13.1]} 27... Nc5 {[%clk
0:00:18.7]} 28. f5 {[%clk 0:00:09.6]} 28... Nb3 {[%clk 0:00:17.4]} 29. Nxb3
{[%clk 0:00:06.6]} 29... cxb3 {[%clk 0:00:18.3]} 30. Bd3 {[%clk 0:00:06.7]}
30... bxa2 {[%clk 0:00:18.4]} 31. f6 {[%clk 0:00:05.5]} 31... Qb6+ {[%clk
0:00:16.5]} 32. Kh1 {[%clk 0:00:05.2]} 32... g6 {[%clk 0:00:16.1]} 33. Qg4
{[%clk 0:00:05]} 33... Rxg4 {[%clk 0:00:15.5]} 34. hxg4 {[%clk 0:00:05]} 34...
Qd4 {[%clk 0:00:15.4]} 0-1

[Event "Late-Titled-Tuesday-Blitz-March-05-2024"]
[Site "Chess.com"]
[Date "2024.03.05"]
[Round "3"]
[White "Sanan_Sjugirov"]
[Black "MKlose11"]
[Result "1-0"]
[WhiteElo "2991"]
[BlackElo "2627"]
[TimeControl "180+1"]
[EndTime "14:28:09 PST"]
[Termination "Sanan_Sjugirov won by checkmate"]

1. e4 {[%clk 0:03:00.9]} 1... e6 {[%clk 0:02:59.7]} 2. d4 {[%clk 0:03:00.9]}
2... d5 {[%clk 0:03:00.3]} 3. Nd2 {[%clk 0:02:59.2]} 3... Be7 {[%clk 0:02:59.9]}
4. Ngf3 {[%clk 0:02:51.7]} 4... Nf6 {[%clk 0:02:58.4]} 5. e5 {[%clk 0:02:52]}
5... Nfd7 {[%clk 0:02:57.6]} 6. Bd3 {[%clk 0:02:52.6]} 6... c5 {[%clk 0:02:57]}
7. c3 {[%clk 0:02:53.3]} 7... Nc6 {[%clk 0:02:56.1]} 8. O-O {[%clk 0:02:53.5]}
8... a5 {[%clk 0:02:56.4]} 9. a4 {[%clk 0:02:52.9]} 9... cxd4 {[%clk 0:02:51.6]}
10. cxd4 {[%clk 0:02:52.3]} 10... Nb4 {[%clk 0:02:48.1]} 11. Bb1 {[%clk
0:02:49.4]} 11... b6 {[%clk 0:02:48.1]} 12. Re1 {[%clk 0:02:47.8]} 12... Ba6
{[%clk 0:02:47.7]} 13. Nf1 {[%clk 0:02:42.9]} 13... Rc8 {[%clk 0:02:46.6]} 14.
Ra3 {[%clk 0:02:39]} 14... Qc7 {[%clk 0:02:43.9]} 15. Rc3 {[%clk 0:02:38.1]}
15... Qb7 {[%clk 0:02:43.7]} 16. Ng3 {[%clk 0:02:36.9]} 16... Rxc3 {[%clk
0:02:37.4]} 17. bxc3 {[%clk 0:02:36.7]} 17... Nc6 {[%clk 0:02:38]} 18. Ng5
{[%clk 0:02:19.6]} 18... h6 {[%clk 0:02:19.9]} 19. Qh5 {[%clk 0:02:14.1]} 19...
Bxg5 {[%clk 0:02:19.4]} 20. Bxg5 {[%clk 0:02:13.9]} 20... b5 {[%clk 0:02:11.7]}
21. axb5 {[%clk 0:02:13.4]} 21... Qxb5 {[%clk 0:02:09.7]} 22. Bd2 {[%clk
0:02:04.6]} 22... a4 {[%clk 0:02:02.9]} 23. Qg4 {[%clk 0:02:04]} 23... g5 {[%clk
0:01:45.9]} 24. h4 {[%clk 0:01:51.2]} 24... Qb2 {[%clk 0:01:44.4]} 25. Be3
{[%clk 0:01:36.2]} 25... a3 {[%clk 0:01:43.4]} 26. hxg5 {[%clk 0:01:28.3]} 26...
hxg5 {[%clk 0:01:40.2]} 27. Qxg5 {[%clk 0:01:24.7]} 27... a2 {[%clk 0:01:38]}
28. Bxa2 {[%clk 0:01:24.4]} 28... Qxa2 {[%clk 0:01:37.4]} 29. Qg7 {[%clk
0:01:13.8]} 29... Rf8 {[%clk 0:01:35.7]} 30. Bh6 {[%clk 0:01:06.3]} 30... Bd3
{[%clk 0:01:32.9]} 31. Nh5 {[%clk 0:01:01.6]} 31... Qa3 {[%clk 0:01:23.3]} 32.
Nf6+ {[%clk 0:00:26]} 32... Nxf6 {[%clk 0:01:21.5]} 33. exf6 {[%clk 0:00:26.9]}
33... Nb8 {[%clk 0:01:07.2]} 34. Bc1 {[%clk 0:00:17.2]} 34... Qxc3 {[%clk
0:01:02.9]} 35. Rxe6+ {[%clk 0:00:16.6]} 35... Kd7 {[%clk 0:00:59.9]} 36. Re7+
{[%clk 0:00:16.2]} 36... Kc6 {[%clk 0:00:58.3]} 37. Bf4 {[%clk 0:00:12.8]} 37...
Nd7 {[%clk 0:00:45.7]} 38. Rxd7 {[%clk 0:00:08.5]} 38... Kxd7 {[%clk 0:00:45.2]}
39. Qxf8 {[%clk 0:00:08.7]} 39... Qe1+ {[%clk 0:00:45.4]} 40. Kh2 {[%clk
0:00:08.5]} 40... Bg6 {[%clk 0:00:42.8]} 41. Qd6+ {[%clk 0:00:08.1]} 41... Ke8
{[%clk 0:00:41.1]} 42. Qb8+ {[%clk 0:00:08.3]} 42... Kd7 {[%clk 0:00:41.3]} 43.
Qd6+ {[%clk 0:00:07.3]} 43... Ke8 {[%clk 0:00:41.2]} 44. Qc6+ {[%clk 0:00:07.9]}
44... Kd8 {[%clk 0:00:33.9]} 45. Bc7+ {[%clk 0:00:08]} 45... Kc8 {[%clk
0:00:33.4]} 46. Bd6+ {[%clk 0:00:08]} 46... Kd8 {[%clk 0:00:33.1]} 47. Qc7+
{[%clk 0:00:08.2]} 47... Ke8 {[%clk 0:00:33.6]} 48. Qc8# {[%clk 0:00:08.7]} 1-0

[Event "Late-Titled-Tuesday-Blitz-March-05-2024"]
[Site "Chess.com"]
[Date "2024.03.05"]
[Round "3"]
[White "Lukianoo"]
[Black "IMRosen"]
[Result "1-0"]
[WhiteElo "2879"]
[BlackElo "2668"]
[TimeControl "180+1"]
[EndTime "14:28:10 PST"]
[Termination "Lukianoo won on time"]

1. e4 {[%clk 0:03:00.9]} 1... c5 {[%clk 0:02:57.9]} 2. Nf3 {[%clk 0:02:59.9]}
2... Nc6 {[%clk 0:02:58.6]} 3. Bb5 {[%clk 0:02:59.6]} 3... e6 {[%clk 0:02:58.7]}
4. O-O {[%clk 0:02:59.3]} 4... Nge7 {[%clk 0:02:58.8]} 5. Re1 {[%clk 0:02:59.7]}
5... a6 {[%clk 0:02:58.5]} 6. Bf1 {[%clk 0:02:59.7]} 6... d5 {[%clk 0:02:59.2]}
7. exd5 {[%clk 0:02:59.8]} 7... Nxd5 {[%clk 0:03:00.1]} 8. d4 {[%clk 0:02:59.6]}
8... Nf6 {[%clk 0:03:00.7]} 9. Be3 {[%clk 0:02:54]} 9... cxd4 {[%clk 0:02:42.4]}
10. Nxd4 {[%clk 0:02:54.9]} 10... Qc7 {[%clk 0:02:41.4]} 11. Nc3 {[%clk
0:02:31.8]} 11... Be7 {[%clk 0:02:34.1]} 12. Qf3 {[%clk 0:02:13.4]} 12... Nxd4
{[%clk 0:02:15]} 13. Bxd4 {[%clk 0:02:14.3]} 13... Bd7 {[%clk 0:02:15.1]} 14.
Be5 {[%clk 0:02:12.5]} 14... Qb6 {[%clk 0:02:09.4]} 15. Rad1 {[%clk 0:01:54.4]}
15... Bc6 {[%clk 0:02:03.9]} 16. Qg3 {[%clk 0:01:53.7]} 16... O-O {[%clk
0:02:04]} 17. Rd4 {[%clk 0:01:42.1]} 17... Nh5 {[%clk 0:01:17.8]} 18. Qh3 {[%clk
0:01:13.3]} 18... g6 {[%clk 0:01:17.8]} 19. g4 {[%clk 0:01:11.4]} 19... Ng7
{[%clk 0:00:53.2]} 20. Rd3 {[%clk 0:00:35.4]} 20... Rad8 {[%clk 0:00:43.5]} 21.
Qh6 {[%clk 0:00:17.1]} 21... f6 {[%clk 0:00:40.6]} 22. Rh3 {[%clk 0:00:17.1]}
22... fxe5 {[%clk 0:00:31]} 23. Qxh7+ {[%clk 0:00:17.4]} 23... Kf7 {[%clk
0:00:31.6]} 24. Bd3 {[%clk 0:00:17.1]} 24... Ke8 {[%clk 0:00:11.7]} 25. Re2
{[%clk 0:00:10.3]} 25... Qxb2 {[%clk 0:00:05]} 26. Nd1 {[%clk 0:00:08.6]} 26...
Qc1 {[%clk 0:00:05]} 27. Re1 {[%clk 0:00:08.4]} 27... Qg5 {[%clk 0:00:03.4]} 28.
Qxg7 {[%clk 0:00:04.7]} 28... Rf7 {[%clk 0:00:01.9]} 29. Bxg6 {[%clk 0:00:04.1]}
29... Kd7 {[%clk 0:00:01.5]} 30. Qxf7 {[%clk 0:00:04]} 30... Qxg4+ {[%clk
0:00:01.4]} 31. Rg3 {[%clk 0:00:04.3]} 31... Qh4 {[%clk 0:00:01.2]} 32. Bf5
{[%clk 0:00:04.1]} 1-0

[Event "Late-Titled-Tuesday-Blitz-March-05-2024"]
[Site "Chess.com"]
[Date "2024.03.05"]
[Round "3"]
[White "GMBenjaminBok"]
[Black "Bryanl106"]
[Result "0-1"]
[WhiteElo "2959"]
[BlackElo "2639"]
[TimeControl "180+1"]
[EndTime "14:28:10 PST"]
[Termination "Bryanl106 won by checkmate"]

1. d4 {[%clk 0:03:00.9]} 1... Nf6 {[%clk 0:02:59.8]} 2. c4 {[%clk 0:02:58]} 2...
g6 {[%clk 0:03:00]} 3. g3 {[%clk 0:02:52.3]} 3... Bg7 {[%clk 0:03:00.2]} 4. Bg2
{[%clk 0:02:51.2]} 4... O-O {[%clk 0:03:01.1]} 5. Nc3 {[%clk 0:02:50.6]} 5... d6
{[%clk 0:02:48.5]} 6. Nf3 {[%clk 0:02:50.6]} 6... Nc6 {[%clk 0:02:48.3]} 7. O-O
{[%clk 0:02:50]} 7... Bg4 {[%clk 0:02:49]} 8. Be3 {[%clk 0:02:46.2]} 8... Nd7
{[%clk 0:02:44]} 9. Rc1 {[%clk 0:02:45.5]} 9... e5 {[%clk 0:02:43.8]} 10. dxe5
{[%clk 0:02:46.4]} 10... Bxf3 {[%clk 0:02:40]} 11. exf3 {[%clk 0:02:46.3]} 11...
Ndxe5 {[%clk 0:02:40.9]} 12. b3 {[%clk 0:02:45.5]} 12... h5 {[%clk 0:02:39.4]}
13. h3 {[%clk 0:02:44.6]} 13... h4 {[%clk 0:02:34]} 14. f4 {[%clk 0:02:42.1]}
14... Nd7 {[%clk 0:02:33.6]} 15. g4 {[%clk 0:02:41.9]} 15... Re8 {[%clk
0:02:33.4]} 16. g5 {[%clk 0:02:26.6]} 16... Nc5 {[%clk 0:02:14.6]} 17. Nd5
{[%clk 0:02:08.2]} 17... Qc8 {[%clk 0:02:00.4]} 18. f5 {[%clk 0:01:57.9]} 18...
Ne5 {[%clk 0:01:29.9]} 19. f6 {[%clk 0:01:48.7]} 19... Bf8 {[%clk 0:01:25.3]}
20. Bxc5 {[%clk 0:01:38.9]} 20... dxc5 {[%clk 0:01:24.7]} 21. f4 {[%clk
0:01:39]} 21... Nc6 {[%clk 0:01:24.1]} 22. f5 {[%clk 0:01:29.4]} 22... Re5
{[%clk 0:01:16]} 23. Qg4 {[%clk 0:01:07.4]} 23... Nd4 {[%clk 0:01:02.3]} 24.
Rce1 {[%clk 0:00:22.6]} 24... Rxf5 {[%clk 0:00:40.8]} 25. Ne7+ {[%clk
0:00:07.6]} 25... Bxe7 {[%clk 0:00:40]} 26. fxe7 {[%clk 0:00:08.5]} 26... Qd7
{[%clk 0:00:25.5]} 27. Qxh4 {[%clk 0:00:02.9]} 27... Re8 {[%clk 0:00:24]} 28.
Qe4 {[%clk 0:00:02.8]} 28... Rxf1+ {[%clk 0:00:19.7]} 29. Kxf1 {[%clk
0:00:03.7]} 29... Nf5 {[%clk 0:00:19.7]} 30. Qxb7 {[%clk 0:00:03.3]} 30... Rxe7
{[%clk 0:00:18.8]} 31. Qa8+ {[%clk 0:00:01.6]} 31... Kg7 {[%clk 0:00:18.6]} 32.
Qf3 {[%clk 0:00:02.1]} 32... Rxe1+ {[%clk 0:00:16.1]} 33. Kxe1 {[%clk 0:00:03]}
33... Qe7+ {[%clk 0:00:16.6]} 34. Kf2 {[%clk 0:00:02.6]} 34... Qxg5 {[%clk
0:00:16.3]} 35. Qe4 {[%clk 0:00:02.6]} 35... Qg3+ {[%clk 0:00:16.4]} 36. Kg1
{[%clk 0:00:02.5]} 36... Nh4 {[%clk 0:00:13.8]} 37. Kf1 {[%clk 0:00:02.2]} 37...
f5 {[%clk 0:00:13.7]} 38. Qe6 {[%clk 0:00:02.1]} 38... Qxg2+ {[%clk 0:00:13.7]}
39. Ke1 {[%clk 0:00:02.6]} 39... Nf3+ {[%clk 0:00:14.6]} 40. Kd1 {[%clk
0:00:03]} 40... Qd2# {[%clk 0:00:15.5]} 0-1

[Event "Late-Titled-Tuesday-Blitz-March-05-2024"]
[Site "Chess.com"]
[Date "2024.03.05"]
[Round "3"]
[White "ventdelest"]
[Black "XeresLt"]
[Result "0-1"]
[WhiteElo "2080"]
[BlackElo "2472"]
[TimeControl "180+1"]
[EndTime "14:28:10 PST"]
[Termination "XeresLt won by resignation"]

1. e4 {[%clk 0:02:59.1]} 1... c5 {[%clk 0:02:58.1]} 2. Nf3 {[%clk 0:02:58.6]}
2... Nc6 {[%clk 0:02:58.5]} 3. Bb5 {[%clk 0:02:54]} 3... g6 {[%clk 0:02:57.7]}
4. d3 {[%clk 0:02:51.7]} 4... Bg7 {[%clk 0:02:57.6]} 5. c3 {[%clk 0:02:52.2]}
5... e5 {[%clk 0:02:57.5]} 6. Ba4 {[%clk 0:02:51.7]} 6... Nge7 {[%clk
0:02:56.8]} 7. O-O {[%clk 0:02:51.2]} 7... O-O {[%clk 0:02:57.1]} 8. Nbd2 {[%clk
0:02:47.7]} 8... d5 {[%clk 0:02:57.2]} 9. Re1 {[%clk 0:02:44.3]} 9... a6 {[%clk
0:02:54.3]} 10. Bc2 {[%clk 0:02:43.7]} 10... d4 {[%clk 0:02:51.2]} 11. c4 {[%clk
0:02:42.7]} 11... f5 {[%clk 0:02:45.5]} 12. exf5 {[%clk 0:02:39.8]} 12... gxf5
{[%clk 0:02:45.4]} 13. Nf1 {[%clk 0:02:32.8]} 13... f4 {[%clk 0:02:43.1]} 14.
N1d2 {[%clk 0:02:29.7]} 14... Kh8 {[%clk 0:02:37]} 15. Ne4 {[%clk 0:02:19.4]}
15... b6 {[%clk 0:02:36.5]} 16. Nfg5 {[%clk 0:02:11.4]} 16... Bf5 {[%clk
0:02:30.3]} 17. h3 {[%clk 0:01:50.5]} 17... Qd7 {[%clk 0:02:28.1]} 18. Kh2
{[%clk 0:01:31.4]} 18... h6 {[%clk 0:02:13.1]} 19. Nf3 {[%clk 0:01:29.1]} 19...
Rg8 {[%clk 0:02:09.1]} 20. Rg1 {[%clk 0:01:10.4]} 20... Raf8 {[%clk 0:02:07.6]}
21. Bd2 {[%clk 0:01:08.6]} 21... Bf6 {[%clk 0:01:59.5]} 22. Nxf6 {[%clk
0:01:03.5]} 22... Rxf6 {[%clk 0:01:59.2]} 23. Nh4 {[%clk 0:00:51.9]} 23... Bh7
{[%clk 0:01:56.5]} 24. Qe2 {[%clk 0:00:42.6]} 24... Nf5 {[%clk 0:01:55.4]} 25.
Nxf5 {[%clk 0:00:41]} 25... Qxf5 {[%clk 0:01:53.1]} 26. g4 {[%clk 0:00:36.1]}
26... Qg5 {[%clk 0:01:25.1]} 27. Qf3 {[%clk 0:00:34.4]} 27... e4 {[%clk
0:01:23.3]} 28. dxe4 {[%clk 0:00:30.9]} 28... Ne5 {[%clk 0:01:23.3]} 29. Qg2
{[%clk 0:00:27.6]} 29... d3 {[%clk 0:01:22.9]} 30. Bd1 {[%clk 0:00:25.5]} 30...
Nxc4 {[%clk 0:01:22.3]} 31. Bc3 {[%clk 0:00:23.3]} 31... Ne5 {[%clk 0:01:15.8]}
32. Bf3 {[%clk 0:00:21.4]} 32... Rd8 {[%clk 0:01:09.5]} 33. b3 {[%clk
0:00:18.8]} 33... b5 {[%clk 0:01:09.3]} 34. a4 {[%clk 0:00:18.1]} 34... b4
{[%clk 0:00:56.5]} 35. Bd2 {[%clk 0:00:17.7]} 35... Rd4 {[%clk 0:00:53.4]} 36.
Rac1 {[%clk 0:00:15.7]} 36... Nxf3+ {[%clk 0:00:52.9]} 37. Qxf3 {[%clk
0:00:14.8]} 37... Bxe4 {[%clk 0:00:53.8]} 38. Qd1 {[%clk 0:00:13.6]} 38... Qh4
{[%clk 0:00:52.6]} 39. f3 {[%clk 0:00:12.5]} 39... Qf2+ {[%clk 0:00:50.1]} 40.
Rg2 {[%clk 0:00:11.4]} 40... Qxf3 {[%clk 0:00:50.3]} 41. Qxf3 {[%clk 0:00:10.2]}
41... Bxf3 {[%clk 0:00:51.2]} 42. Rxc5 {[%clk 0:00:10.2]} 42... Bxg2 {[%clk
0:00:50.8]} 43. Kxg2 {[%clk 0:00:11.1]} 43... f3+ {[%clk 0:00:49.3]} 44. Kf2
{[%clk 0:00:11.1]} 44... Re4 {[%clk 0:00:48.7]} 45. Be3 {[%clk 0:00:09.3]} 45...
Rxe3 {[%clk 0:00:48.9]} 46. Kxe3 {[%clk 0:00:09.4]} 46... f2 {[%clk 0:00:49.2]}
0-1